lending/lending_fUSD_20250920
["ID","MTS","AMOUNT","RATE_DAILY","PERIOD"]
[386585384,1758411076469,-400.0,0.00022738,2]
[386585385,1758411076480,-4766.73,0.00022738,2]
[386585386,1758411076492,-963.01,0.00022738,2]
[386585387,1758411076502,-400.0,0.00022738,2]
[386585388,1758411076512,-400.0,0.00022738,2]
[386585389,1758411076522,-400.0,0.00022738,2]
[386585390,1758411076534,-2421.52,0.00022738,2]
[386585391,1758411076545,-400.0,0.00022738,2]
[386585392,1758411076556,-400.0,0.00022738,2]
[386585393,1758411076566,-400.0,0.00022738,2]
[386585394,1758411076578,-433.48,0.00022738,2]
[386585395,1758411076591,-661.84,0.00022738,2]
[386585396,1758411076602,-400.0,0.00022738,2]
[386585397,1758411076613,-636.33,0.00022738,2]
[386585398,1758411076625,-4239.95,0.00022738,2]
[386585399,1758411076636,-400.0,0.00022738,2]
[386585400,1758411076646,-4248.55,0.00022738,2]
[386585401,1758411076656,-400.0,0.00022738,2]
[386585402,1758411076666,-562.78,0.00022738,2]
[386585403,1758411076675,-408.02,0.00022738,2]
[386585404,1758411076685,-400.0,0.00022738,2]
[386585405,1758411076695,-403.35551079,0.00022738,2]
[386585406,1758411076706,-455.24,0.00022738,2]
[386585407,1758411076717,-400.0,0.00022738,2]
[386585408,1758411076728,-400.0,0.00022738,2]
[386585409,1758411076740,-905.3,0.00022738,2]
[386585410,1758411076750,-400.0,0.00022738,2]
[386585411,1758411076759,-400.0,0.00022738,2]
[386585412,1758411076769,-2788.38,0.00022738,2]
[386585413,1758411076779,-400.0,0.00022738,2]
[386585414,1758411076789,-400.0,0.00022738,2]
[386585415,1758411076800,-400.0,0.00022738,2]
[386585416,1758411076810,-400.0,0.00022738,2]
[386585417,1758411076820,-400.0,0.00022738,2]
[386585418,1758411076830,-903.46,0.00022738,2]
[386585419,1758411076842,-763.28,0.00022738,2]
[386585420,1758411076852,-400.0,0.00022738,2]
[386585421,1758411076862,-400.0,0.00022738,2]
[386585422,1758411076872,-405.95,0.00022739,2]
[386585423,1758411076881,-400.0,0.00022739,2]
[386585424,1758411076891,-400.0,0.00022739,2]
[386585425,1758411076901,-499.4,0.00022739,2]
[386585426,1758411076911,-400.0,0.00022739,2]
[386585427,1758411076921,-400.0,0.00022739,2]
[386585428,1758411076931,-400.0,0.00022739,2]
[386585429,1758411076941,-400.0,0.00022739,2]
[386585430,1758411076951,-400.0,0.00022739,2]
[386585431,1758411076961,-1221.05,0.00022739,2]
[386585432,1758411076970,-407.03639838,0.00022739,2]
[386585433,1758411076980,-412.83,0.00022739,2]
[386585434,1758411076991,-456.39,0.00022739,2]
[386585435,1758411077001,-400.0,0.00022739,2]
[386585436,1758411077010,-400.0,0.00022739,2]
[386585437,1758411077019,-422.18,0.00022739,2]
[386585438,1758411077029,-735.5,0.00022739,2]
[386585439,1758411077040,-400.0,0.00022739,2]
[386585440,1758411077050,-400.0,0.00022739,2]
[386585441,1758411077059,-973.78,0.00022739,2]
[386585442,1758411077069,-400.0,0.00022739,2]
[386585443,1758411077079,-780.68,0.00022739,2]
[386585444,1758411077091,-460.22,0.00022739,2]
[386585445,1758411077101,-400.0,0.00022739,2]
[386585446,1758411077111,-253.15,0.00022739,2]
[386585447,1758411077125,-445.21,0.00022739,2]
[386585448,1758411077136,-783.53,0.00022739,2]
[386585449,1758411077146,-400.0,0.00022739,2]
[386585450,1758411077156,-1017.9,0.00022739,2]
[386585451,1758411077166,-400.0,0.00022739,2]
[386585452,1758411077176,-400.0,0.00022739,2]
[386585453,1758411077186,-400.0,0.00022739,2]
[386585454,1758411077196,-400.0,0.00022739,2]
[386585455,1758411077206,-400.0,0.00022739,2]
[386585456,1758411077215,-400.0,0.00022739,2]
[386585457,1758411077225,-400.0,0.00022739,2]
[386585458,1758411077236,-400.0,0.00022739,2]
[386585459,1758411077246,-400.0,0.00022739,2]
[386585460,1758411077255,-400.0,0.00022739,2]
[386585461,1758411077265,-400.0,0.00022739,2]
[386585462,1758411077275,-905.84,0.00022739,2]
[386585463,1758411077286,-400.0,0.00022739,2]
[386585464,1758411077297,-400.0,0.00022739,2]
[386585465,1758411077307,-400.0,0.00022739,2]
[386585466,1758411077317,-516.97,0.00022739,2]
[386585467,1758411077327,-917.42,0.00022739,2]
[386585468,1758411077336,-400.0,0.00022739,2]
[386585469,1758411077346,-400.0,0.00022739,2]
[386585470,1758411077356,-416.67,0.00022739,2]
[386585471,1758411077366,-1155.51,0.00022739,2]
[386585472,1758411077376,-400.0,0.00022739,2]
[386585473,1758411077386,-400.0,0.00022739,2]
[386585474,1758411077396,-400.0,0.00022739,2]
[386585475,1758411077406,-400.0,0.00022739,2]
[386585476,1758411077416,-427.62,0.00022739,2]
[386585477,1758411077426,-466.23,0.00022739,2]
[386585478,1758411077437,-400.0,0.00022739,2]
[386585479,1758411077447,-417.39,0.00022739,2]
[386585480,1758411077458,-513.76,0.00022739,2]
[386585481,1758411077468,-400.0,0.00022739,2]
[386585482,1758411077479,-470.39,0.00022739,2]
[386585483,1758411077488,-400.0,0.00022739,2]
[386585484,1758411077498,-400.0,0.00022739,2]
[386585485,1758411077508,-400.0,0.00022739,2]
[386585486,1758411077518,-400.0,0.00022739,2]
[386585487,1758411077528,-400.0,0.00022739,2]
[386585488,1758411077538,-400.0,0.00022739,2]
[386585489,1758411077548,-400.0,0.00022739,2]
[386585490,1758411077558,-753.02,0.00022739,2]
[386585491,1758411077568,-1423.3,0.00022739,2]
[386585492,1758411077578,-1080.62,0.00022739,2]
[386585493,1758411077588,-25010.4,0.00022739,2]
[386585494,1758411077796,-430.06,0.00022739,2]
[386585495,1758411077811,-1865.61,0.00022739,2]
[386585496,1758411077820,-2667.35,0.00022739,2]
[386585497,1758411077831,-1922.03,0.00022739,2]
[386585498,1758411077840,-3013.62,0.00022739,2]
[386585499,1758411077850,-2227.82,0.00022739,2]
[386585500,1758411077859,-400.0,0.00022739,2]
[386585501,1758411077869,-1911.57,0.00022739,2]
[386585502,1758411077879,-1326.64,0.00022739,2]
[386585503,1758411077889,-1598.81,0.00022739,2]
[386585504,1758411077899,-518.49396049,0.00022739,2]
[386585505,1758411077909,-1006.97,0.00022739,2]
[386585506,1758411077918,-400.0,0.00022739,2]
[386585507,1758411077927,-2287.61,0.00022739,2]
[386585508,1758411077937,-1946.76,0.00022739,2]
[386585509,1758411077946,-2942.69,0.00022739,2]
[386585510,1758411077956,-662.64,0.00022739,2]
[386585511,1758411077965,-635.03,0.00022739,2]
[386585512,1758411077975,-510.31,0.00022739,2]
[386585513,1758411077984,-400.0,0.00022739,2]
[386585514,1758411077994,-405.38171364,0.00022739,2]
[386585515,1758411078004,-400.0,0.00022739,2]
[386585516,1758411078014,-400.0,0.00022739,2]
[386585517,1758411078023,-399.33189768,0.00022739,2]
[386585518,1758411078033,-2086.33,0.00022739,2]
[386585519,1758411078043,-400.0,0.00022739,2]
[386585520,1758411078052,-400.0,0.00022739,2]
[386585521,1758411078062,-4322.37,0.00022739,2]
[386585522,1758411078072,-1428.44,0.00022739,2]
[386585523,1758411078082,-1503.82,0.00022739,2]
[386585524,1758411078092,-400.0,0.00022739,2]
[386585525,1758411078102,-400.0,0.00022739,2]
[386585526,1758411078111,-1087.06,0.00022739,2]
[386585527,1758411078124,-400.0,0.00022739,2]
[386585528,1758411078134,-1799.59,0.00022739,2]
[386585529,1758411078143,-517.51,0.00022739,2]
[386585530,1758411078153,-400.0,0.00022739,2]
[386585531,1758411078163,-400.0,0.00022739,2]
[386585532,1758411078172,-1269.39,0.00022739,2]
[386585533,1758411078181,-400.0,0.00022739,2]
[386585534,1758411078190,-400.0,0.00022739,2]
[386585535,1758411078202,-400.0,0.00022739,2]
[386585536,1758411078212,-810.42,0.00022739,2]
[386585537,1758411078222,-400.0,0.00022739,2]
[386585538,1758411078231,-5158.25,0.00022739,2]
[386585539,1758411078240,-842.58,0.00022739,2]
[386585540,1758411078251,-1153.91,0.00022739,2]
[386585541,1758411078261,-646.59,0.00022739,2]
[386585542,1758411078270,-400.0,0.00022739,2]
[386585543,1758411078279,-1052.06,0.00022739,2]
[386585544,1758411078289,-400.0,0.00022739,2]
[386585545,1758411078298,-1366.55,0.00022739,2]
[386585546,1758411078307,-400.0,0.00022739,2]
[386585547,1758411078317,-697.33,0.00022739,2]
[386585548,1758411078326,-400.0,0.00022739,2]
[386585549,1758411078335,-404.27,0.00022739,2]
[386585550,1758411078344,-400.0,0.00022739,2]
[386585551,1758411078354,-542.58,0.00022739,2]
[386585552,1758411078363,-1046.52,0.00022739,2]
[386585553,1758411078372,-400.0,0.00022739,2]
[386585554,1758411078382,-1207.09,0.00022739,2]
[386585555,1758411078391,-1420.88,0.00022739,2]
[386585556,1758411078400,-168.0,0.00022752,2]
[386585557,1758411078410,-1225.96567817,0.00022821,2]
[386585558,1758411078419,-400.0,0.00022911,2]
[386585559,1758411078430,-400.0,0.00022911,2]
[386585560,1758411078439,-400.0,0.00022911,2]
[386585561,1758411078448,-400.0,0.00022911,2]
[386585562,1758411078458,-400.0,0.00022911,2]
[386585563,1758411078467,-727.63573709,0.00022911,2]
[386585564,1758411078477,-400.0,0.00022911,2]
[386585565,1758411078486,-400.0,0.00022912,2]
[386585566,1758411078495,-400.0,0.00022912,2]
[386585567,1758411078505,-400.0,0.00022912,2]
[386585568,1758411078514,-400.0,0.00022912,2]
[386585569,1758411078524,-434.72642509,0.00022912,2]
[386585570,1758411078533,-400.0,0.00022912,2]
[386585571,1758411078543,-400.0,0.00022912,2]
[386585572,1758411078552,-400.0,0.00022912,2]
[386585573,1758411078561,-400.0,0.00022912,2]
[386585574,1758411078570,-400.0,0.00022912,2]
[386585575,1758411078579,-400.0,0.00022912,2]
[386585576,1758411078592,-400.0,0.00022912,2]
[386585577,1758411078601,-400.0,0.00022912,2]
[386585578,1758411078611,-400.0,0.00022912,2]
[386585579,1758411078621,-400.0,0.00022912,2]
[386585580,1758411078630,-400.0,0.00022912,2]
[386585581,1758411078639,-400.0,0.00022912,2]
[386585582,1758411078649,-400.0,0.00022912,2]
[386585583,1758411078658,-400.0,0.00022912,2]
[386585584,1758411078667,-400.0,0.00022912,2]
[386585585,1758411078677,-400.0,0.00022912,2]
[386585586,1758411078687,-400.0,0.00022912,2]
[386585587,1758411078697,-400.0,0.00022912,2]
[386585588,1758411078707,-400.0,0.00022912,2]
[386585589,1758411078716,-442.78273679,0.00022912,2]
[386585590,1758411078725,-400.0,0.00022912,2]
[386585591,1758411078735,-400.0,0.00022912,2]
[386585592,1758411078744,-400.0,0.00022912,2]
[386585593,1758411078754,-400.0,0.00022912,2]
[386585594,1758411078763,-657.49510238,0.00022912,2]
[386585595,1758411078773,-400.0,0.00022912,2]
[386585596,1758411078782,-400.0,0.00022912,2]
[386585597,1758411078792,-400.0,0.00022912,2]
[386585598,1758411078801,-400.0,0.00022912,2]
[386585599,1758411078811,-400.0,0.00022912,2]
[386585600,1758411078821,-151.0,0.00022912,7]
[386585601,1758411078830,-400.0,0.00022912,2]
[386585602,1758411078840,-400.0,0.00022912,2]
[386585603,1758411078850,-400.0,0.00022912,2]
[386585604,1758411078860,-400.0,0.00022912,2]
[386585605,1758411078870,-288.19581961,0.00022912,2]
[386585606,1758411078880,-151.0,0.00022912,7]
[386585607,1758411078889,-151.0,0.00022912,7]
[386585608,1758411078899,-2048.99,0.00022912,2]
[386585609,1758411078909,-1659.76,0.00022912,2]
[386585610,1758411078919,-1236.79,0.00022912,2]
[386585611,1758411078928,-4173.28,0.00022912,2]
[386585612,1758411078938,-4633.73,0.00022912,2]
[386585613,1758411078948,-6322.23,0.00022912,2]
[386585614,1758411078958,-4106.46,0.00022912,2]
[386585615,1758411078968,-400.0,0.00022912,2]
[386585616,1758411078977,-1453.11,0.00022912,2]
[386585617,1758411078986,-188.27506585,0.00022912,2]
[386585618,1758411078995,-2677.19,0.00022912,2]
[386585619,1758411079008,-400.0,0.00022912,2]
[386585620,1758411079019,-400.0,0.00022912,2]
[386585621,1758411079028,-2457.51,0.00022912,2]
[386585622,1758411079038,-400.0,0.00022912,2]
[386585623,1758411079047,-262.70162218,0.00022913,2]
[386585624,1758411079057,-1225.96567817,0.00022943,2]
[386585625,1758411079067,-168.0,0.00022959,2]
[386585626,1758411079076,-500.0,0.00022988,2]
[386585627,1758411079086,-570.05,0.00022988,2]
[386585628,1758411079095,-506.29,0.00022988,2]
[386585629,1758411079104,-500.0,0.00022988,2]
[386585630,1758411079114,-500.0,0.00022988,2]
[386585631,1758411079123,-269.3286932,0.00022988,2]
[386585632,1758411079133,-8640.32,0.00022988,2]
[386585633,1758411079142,-1022.23,0.00022988,2]
[386585634,1758411079151,-151.0,0.00022989,7]
[386585635,1758411079161,-2074.45,0.00022989,2]
[386585636,1758411079170,-1625.54,0.00022989,2]
[386585637,1758411079180,-400.0,0.00022989,2]
[386585638,1758411079190,-400.0,0.00022989,2]
[386585639,1758411079199,-400.0,0.00022989,2]
[386585640,1758411079213,-400.0,0.00022989,2]
[386585641,1758411079231,-400.0,0.00022989,2]
[386585642,1758411079248,-1263.92,0.00022989,2]
[386585643,1758411079267,-1222.29,0.00022989,2]
[386585644,1758411079283,-2100.68,0.00022989,2]
[386585645,1758411079299,-1639.16,0.00022989,2]
[386585646,1758411079318,-1878.53,0.00022989,2]
[386585647,1758411079336,-1629.3,0.00022989,2]
[386585648,1758411079356,-469.56,0.00022989,2]
[386585649,1758411079372,-400.0,0.00022989,2]
[386585650,1758411079390,-694.32,0.00022989,2]
[386585651,1758411079405,-400.0,0.00022989,2]
[386585652,1758411079419,-1367.01,0.00022989,2]
[386585653,1758411079436,-400.0,0.00022989,2]
[386585654,1758411079450,-1419.53,0.00022989,2]
[386585655,1758411079466,-1719.26,0.00022989,2]
[386585656,1758411079482,-400.0,0.00022989,2]
[386585657,1758411079498,-1671.88,0.00022989,2]
[386585658,1758411079515,-888.24,0.00022989,2]
[386585659,1758411079531,-1628.26,0.00022989,2]
[386585660,1758411079548,-400.0,0.00022989,2]
[386585661,1758411079563,-400.0,0.00022989,2]
[386585662,1758411079578,-1412.53,0.00022989,2]
[386585663,1758411079593,-1577.85,0.00022989,2]
[386585664,1758411079608,-842.81,0.00022989,2]
[386585665,1758411079623,-1273.12,0.00022989,2]
[386585666,1758411079638,-400.0,0.00022989,2]
[386585667,1758411079654,-400.0,0.00022989,2]
[386585668,1758411079669,-1429.73,0.00022989,2]
[386585669,1758411079685,-541.15,0.00022989,2]
[386585670,1758411079700,-1696.32,0.00022989,2]
[386585671,1758411079715,-1295.93,0.00022989,2]
[386585672,1758411079730,-400.0,0.00022989,2]
[386585673,1758411079745,-1872.03,0.00022989,2]
[386585674,1758411079760,-400.0,0.00022989,2]
[386585675,1758411079775,-1984.61,0.00022989,2]
[386585676,1758411079791,-549.07,0.00022989,2]
[386585677,1758411079805,-1060.07,0.00022989,2]
[386585678,1758411079821,-1766.38,0.00022989,2]
[386585679,1758411079836,-1359.08,0.00022989,2]
[386585680,1758411079852,-1403.13,0.00022989,2]
[386585681,1758411079867,-831.3,0.00022989,2]
[386585682,1758411079882,-1537.29,0.00022989,2]
[386585683,1758411079899,-400.0,0.00022989,2]
[386585684,1758411079915,-599.84,0.00022989,2]
[386585685,1758411079930,-1268.35,0.00022989,2]
[386585686,1758411079944,-1727.04,0.00022989,2]
[386585687,1758411079959,-400.0,0.00022989,2]
[386585688,1758411079974,-2375.26,0.00022989,2]
[386585689,1758411079989,-1493.62,0.00022989,2]
[386585690,1758411080004,-1303.44,0.00022989,2]
[386585691,1758411080020,-1001.56,0.00022989,2]
[386585692,1758411080034,-400.0,0.00022989,2]
[386585693,1758411080049,-965.37,0.00022989,2]
[386585694,1758411080064,-1822.94,0.00022989,2]
[386585695,1758411080078,-1599.73,0.00022989,2]
[386585696,1758411080101,-1433.45,0.00022989,2]
[386585697,1758411080119,-1366.81,0.00022989,2]
[386585698,1758411080134,-634.25,0.00022989,2]
[386585699,1758411080149,-409.44,0.00022989,2]
[386585700,1758411080164,-709.54,0.00022989,2]
[386585701,1758411080180,-400.0,0.00022989,2]
[386585702,1758411080195,-1263.48,0.00022989,2]
[386585703,1758411080211,-1602.7,0.00022989,2]
[386585704,1758411080227,-813.09,0.00022989,2]
[386585705,1758411080241,-1429.44,0.00022989,2]
[386585706,1758411080257,-1107.77,0.00022989,2]
[386585707,1758411080273,-1220.63,0.00022989,2]
[386585708,1758411080290,-400.0,0.00022989,2]
[386585709,1758411080315,-1486.0,0.00022989,2]
[386585710,1758411080340,-2058.56,0.00022989,2]
[386585711,1758411080362,-400.0,0.00022989,2]
[386585712,1758411080384,-1294.61,0.00022989,2]
[386585713,1758411080403,-400.0,0.00022989,2]
[386585714,1758411080422,-1347.56,0.00022989,2]
[386585715,1758411080441,-1433.89,0.00022989,2]
[386585716,1758411080459,-1179.5,0.00022989,2]
[386585717,1758411080476,-604.01,0.00022989,2]
[386585718,1758411080493,-586.82,0.00022989,2]
[386585719,1758411080510,-919.15,0.00022989,2]
[386585720,1758411080528,-400.0,0.00022989,2]
[386585721,1758411080543,-1649.92,0.00022989,2]
[386585722,1758411080560,-1395.21,0.00022989,2]
[386585723,1758411080576,-400.0,0.00022989,2]
[386585724,1758411080592,-400.0,0.00022989,2]
[386585725,1758411080608,-1741.39,0.00022989,2]
[386585726,1758411080624,-400.0,0.00022989,2]
[386585727,1758411080640,-441.21,0.00022989,2]
[386585728,1758411080656,-400.0,0.00022989,2]
[386585729,1758411080671,-1166.99,0.00022989,2]
[386585730,1758411080686,-1328.86,0.00022989,2]
[386585731,1758411080702,-1530.1,0.00022989,2]
[386585732,1758411080717,-400.0,0.00022989,2]
[386585733,1758411080733,-1274.15,0.00022989,2]
[386585734,1758411080748,-1562.65,0.00022989,2]
[386585735,1758411080764,-377.91334531,0.00022989,2]
[386585736,1758411080781,-744.62,0.00022989,2]
[386585737,1758411080797,-655.75,0.00022989,2]
[386585738,1758411080812,-1347.66,0.00022989,2]
[386585739,1758411080827,-400.0,0.00022989,2]
[386585740,1758411080843,-1513.32,0.00022989,2]
[386585741,1758411080860,-1185.63,0.00022989,2]
[386585742,1758411080876,-1429.22,0.00022989,2]
[386585743,1758411080891,-1510.09,0.00022989,2]
[386585744,1758411080907,-1162.44,0.00022989,2]
[386585745,1758411080922,-975.71,0.00022989,2]
[386585746,1758411080937,-400.0,0.00022989,2]
[386585747,1758411080952,-400.0,0.00022989,2]
[386585748,1758411080969,-1113.41,0.00022989,2]
[386585749,1758411080985,-1005.5,0.00022989,2]
[386585750,1758411080999,-1004.12,0.00022989,2]
[386585751,1758411081014,-400.0,0.00022989,2]
[386585752,1758411081030,-1083.41,0.00022989,2]
[386585753,1758411081044,-400.0,0.00022989,2]
[386585754,1758411081059,-1400.45,0.00022989,2]
[386585755,1758411081074,-1270.34,0.00022989,2]
[386585756,1758411081090,-400.0,0.00022989,2]
[386585757,1758411081105,-447.43,0.00022989,2]
[386585758,1758411081122,-167323.75594852,0.00022989,2]
[386585759,1758411081137,-217.0,0.00023,7]
[386585760,1758411081152,-3019.62027748,0.00023,2]
[386585761,1758411081167,-160.0,0.00023,2]
[386585762,1758411081182,-1058.0,0.00023,2]
[386585763,1758411081200,-400.0,0.0002301,2]
[386585764,1758411081217,-400.0,0.0002301,2]
[386585765,1758411081234,-492.28423535,0.0002301,2]
[386585766,1758411081249,-400.0,0.0002301,2]
[386585767,1758411081266,-411.68961391,0.0002301,2]
[386585768,1758411081281,-400.0,0.0002301,2]
[386585769,1758411081296,-618.67,0.0002301,2]
[386585770,1758411081313,-400.0,0.0002301,2]
[386585771,1758411081329,-400.0,0.0002301,2]
[386585772,1758411081344,-400.0,0.0002301,2]
[386585773,1758411081359,-400.0,0.0002301,2]
[386585774,1758411081373,-400.0,0.0002301,2]
[386585775,1758411081389,-400.0,0.0002301,2]
[386585776,1758411081406,-400.0,0.0002301,2]
[386585777,1758411081421,-400.0,0.0002301,2]
[386585778,1758411081436,-400.0,0.0002301,2]
[386585779,1758411081452,-400.0,0.0002301,2]
[386585780,1758411081467,-400.0,0.0002301,2]
[386585781,1758411081482,-400.0,0.0002301,2]
[386585782,1758411081499,-400.0,0.0002301,2]
[386585783,1758411081515,-400.0,0.0002301,2]
[386585784,1758411081811,-400.0,0.0002301,2]
[386585785,1758411081821,-400.0,0.0002301,2]
[386585786,1758411081831,-400.0,0.0002301,2]
[386585787,1758411081841,-400.0,0.0002301,2]
[386585788,1758411081851,-400.0,0.0002301,2]
[386585789,1758411081860,-400.0,0.0002301,2]
[386585790,1758411081870,-400.0,0.0002301,2]
[386585791,1758411081879,-400.0,0.0002301,2]
[386585792,1758411081888,-400.0,0.0002301,2]
[386585793,1758411081897,-400.0,0.0002301,2]
[386585794,1758411081906,-2778.05,0.0002301,2]
[386585795,1758411081915,-2740.5,0.0002301,2]
[386585796,1758411081925,-2530.65,0.0002301,2]
[386585797,1758411081935,-2560.68,0.0002301,2]
[386585798,1758411081944,-400.0,0.0002301,2]
[386585799,1758411081953,-1181.97,0.0002301,2]
[386585800,1758411081963,-642.68,0.0002301,2]
[386585801,1758411081972,-620.69,0.0002301,2]
[386585802,1758411081981,-1787.31,0.0002301,2]
[386585803,1758411081991,-1779.88,0.0002301,2]
[386585804,1758411082000,-861.83,0.0002301,2]
[386585805,1758411082009,-4024.04,0.0002301,2]
[386585806,1758411082019,-4563.64,0.0002301,2]
[386585807,1758411082028,-400.0,0.0002301,2]
[386585808,1758411082038,-400.0,0.0002301,2]
[386585809,1758411082047,-1828.67,0.0002301,2]
[386585810,1758411082057,-4338.52,0.0002301,2]
[386585811,1758411082066,-400.0,0.00023011,2]
[386585812,1758411082076,-525.77650962,0.00023011,2]
[386585813,1758411082086,-400.0,0.00023011,2]
[386585814,1758411082095,-400.0,0.00023011,2]
[386585815,1758411082104,-400.0,0.00023011,2]
[386585816,1758411082117,-804.04,0.00023011,2]
[386585817,1758411082131,-425.4618109,0.00023011,2]
[386585818,1758411082141,-400.0,0.00023011,2]
[386585819,1758411082151,-400.0,0.00023011,2]
[386585820,1758411082160,-1361.22,0.00023011,2]
[386585821,1758411082171,-400.0,0.00023011,2]
[386585822,1758411082180,-400.0,0.00023011,2]
[386585823,1758411082192,-400.0,0.00023011,2]
[386585824,1758411082203,-400.0,0.00023011,2]
[386585825,1758411082212,-400.0,0.00023011,2]
[386585826,1758411082222,-491.8,0.00023011,2]
[386585827,1758411082232,-505.35,0.00023011,2]
[386585828,1758411082241,-400.0,0.00023011,2]
[386585829,1758411082251,-2099.55,0.00023011,2]
[386585830,1758411082260,-926.44,0.00023011,2]
[386585831,1758411082270,-1744.9,0.00023011,2]
[386585832,1758411082279,-400.0,0.00023011,2]
[386585833,1758411082289,-647.58,0.00023011,2]
[386585834,1758411082298,-400.0,0.00023011,2]
[386585835,1758411082307,-3144.51,0.00023011,2]
[386585836,1758411082316,-1896.02,0.00023011,2]
[386585837,1758411082326,-1417.89,0.00023011,2]
[386585838,1758411082335,-622.74,0.00023011,2]
[386585839,1758411082344,-1888.15,0.00023011,2]
[386585840,1758411082353,-400.0,0.00023011,2]
[386585841,1758411082363,-1607.87,0.00023011,2]
[386585842,1758411082372,-1091.76,0.00023011,2]
[386585843,1758411082382,-1688.66,0.00023011,2]
[386585844,1758411082393,-1874.59,0.00023011,2]
[386585845,1758411082402,-1208.16,0.00023011,2]
[386585846,1758411082412,-415.05351244,0.00023011,2]
[386585847,1758411082421,-400.0,0.00023011,2]
[386585848,1758411082431,-809.74,0.00023011,2]
[386585849,1758411082440,-428.95,0.00023011,2]
[386585850,1758411082450,-400.0,0.00023011,2]
[386585851,1758411082459,-1589.58,0.00023011,2]
[386585852,1758411082469,-4454.03,0.00023011,2]
[386585853,1758411082478,-400.0,0.00023011,2]
[386585854,1758411082487,-1378.3,0.00023011,2]
[386585855,1758411082497,-756.29,0.00023011,2]
[386585856,1758411082507,-2764.59,0.00023011,2]
[386585857,1758411082516,-1848.95,0.00023011,2]
[386585858,1758411082525,-1405.15,0.00023011,2]
[386585859,1758411082535,-497.27,0.00023011,2]
[386585860,1758411082544,-1115.22,0.00023011,2]
[386585861,1758411082553,-400.0,0.00023011,2]
[386585862,1758411082563,-1064.12,0.00023011,2]
[386585863,1758411082573,-1265.42,0.00023011,2]
[386585864,1758411082582,-1982.28,0.00023011,2]
[386585865,1758411082591,-807.03,0.00023011,2]
[386585866,1758411082601,-400.0,0.00023011,2]
[386585867,1758411082611,-2024.1,0.00023011,2]
[386585868,1758411082620,-400.0,0.00023011,2]
[386585869,1758411082630,-778.85,0.00023011,2]
[386585870,1758411082640,-400.0,0.00023011,2]
[386585871,1758411082650,-400.0,0.00023011,2]
[386585872,1758411082660,-6623.458645,0.00023011,2]
[386585873,1758411082670,-2075.63,0.00023011,2]
[386585874,1758411082678,-167.870081,0.00023011,2]
[386585875,1758411082688,-1362.62,0.00023011,2]
[386585876,1758411082697,-159.74412,0.00023011,2]
[386585877,1758411082707,-896.717248,0.00023011,2]
[386585878,1758411082716,-6546.199088,0.00023011,2]
[386585879,1758411082725,-400.0,0.00023011,2]
[386585880,1758411082735,-1590.96,0.00023011,2]
[386585881,1758411082744,-400.0,0.00023011,2]
[386585882,1758411082754,-825.66,0.00023011,2]
[386585883,1758411082764,-10521.07,0.00023011,2]